bitfinex/quotes_BTCUSD_20250115
["timestamp","ask_amount","ask_price","bid_price","bid_amount"]
[1736976499183,0.0001,99801.0,99800.0,0.358809]
[1736976499736,0.0001,99801.0,99800.0,0.360809]
[1736976500376,0.0001,99801.0,99800.0,0.49135087]
[1736976500674,0.0001,99801.0,99800.0,0.49435087]
[1736976500907,0.0001,99801.0,99800.0,0.49135087]
[1736976501250,0.0001,99801.0,99800.0,0.49435087]
[1736976501453,0.0001,99801.0,99800.0,0.49235087]
[1736976501818,0.0001,99801.0,99800.0,0.49435087]
[1736976502347,0.0001,99801.0,99800.0,0.357809]
[1736976502673,0.0001,99801.0,99800.0,0.3697898]
[1736976503444,0.0001,99801.0,99800.0,0.3667898]
[1736976503650,0.0009547,99801.0,99800.0,0.3667898]
[1736976503885,0.0009547,99801.0,99800.0,0.3697898]
[1736976504102,0.0009547,99801.0,99800.0,0.3667898]
[1736976504292,0.0009547,99801.0,99800.0,0.3697898]
[1736976504541,0.0009547,99801.0,99800.0,0.3647898]
[1736976504755,0.0009547,99801.0,99800.0,0.3657898]
[1736976505090,0.0009547,99801.0,99800.0,0.3677898]
[1736976505314,0.0009547,99801.0,99800.0,0.3667898]
[1736976505453,0.0009547,99801.0,99800.0,0.3677898]
[1736976506026,0.0009547,99801.0,99800.0,0.3667898]
[1736976506321,0.0009547,99801.0,99800.0,0.3677898]
[1736976506459,0.0009547,99801.0,99800.0,0.3657898]
[1736976506660,0.0009547,99801.0,99800.0,0.3677898]
[1736976526499,0.0009547,99801.0,99800.0,0.57201672]
[1736976530259,0.0009547,99801.0,99800.0,0.66166587]
[1736976533507,0.0009547,99801.0,99800.0,0.57201672]
[1736976535757,0.0009547,99801.0,99800.0,0.70655859]
[1736976536702,0.0009547,99801.0,99800.0,0.57201672]
[1736976540356,0.0009547,99801.0,99800.0,0.84163235]
[1736976541343,0.0009547,99801.0,99800.0,0.57201672]
[1736976544457,0.0009547,99801.0,99800.0,0.57101672]
[1736976544657,0.0009547,99801.0,99800.0,0.57301672]
[1736976546003,0.0009547,99801.0,99800.0,0.57101672]
[1736976546174,0.0009547,99801.0,99800.0,0.57201672]
[1736976547516,0.0009547,99801.0,99800.0,0.84193806]
[1736976550646,0.0009547,99801.0,99800.0,0.57201672]
[1736976552980,0.0009547,99801.0,99800.0,0.50880872]
[1736976553813,0.0009547,99801.0,99800.0,0.2388898]
[1736976565947,0.0009547,99801.0,99800.0,0.34311672]
[1736976566155,0.0009547,99801.0,99800.0,0.81871672]
[1736976566971,0.0009547,99801.0,99800.0,0.81671672]
[1736976567457,0.0009547,99801.0,99800.0,0.82071672]
[1736976567789,0.0009547,99801.0,99800.0,0.81971672]
[1736976568215,0.0009547,99801.0,99800.0,0.82171672]
[1736976568664,0.0009547,99801.0,99800.0,0.84868773]
[1736976568864,0.0009547,99801.0,99800.0,0.81571672]
[1736976569067,0.0009547,99801.0,99800.0,0.81771672]
[1736976569226,0.0009547,99801.0,99800.0,0.82171672]
[1736976570481,0.0009547,99801.0,99800.0,1.22057502]
[1736976571126,0.0009547,99801.0,99800.0,1.22047482]
[1736976571555,0.0009547,99801.0,99800.0,1.21806602]
[1736976571788,0.0009547,99801.0,99800.0,1.07347482]
[1736976571972,0.0009547,99801.0,99800.0,1.17347482]
[1736976573199,0.0009547,99801.0,99800.0,0.77461652]
[1736976575774,0.0009547,99801.0,99800.0,0.77641097]
[1736976586011,0.0009547,99801.0,99800.0,0.77241097]
[1736976586265,0.0009547,99801.0,99800.0,0.77641097]
[1736976586806,0.0009547,99801.0,99800.0,0.77441097]
[1736976587011,0.0009547,99801.0,99800.0,0.77641097]
[1736976599196,0.0009547,99801.0,99800.0,0.76567697]
[1736976600547,0.0009547,99801.0,99800.0,0.75967697]
[1736976601106,0.0009547,99801.0,99800.0,0.68807697]
[1736976601310,0.0009547,99801.0,99800.0,0.68307697]
[1736976601518,0.0009547,99801.0,99800.0,0.68107697]
[1736976601719,0.0009547,99801.0,99800.0,0.47685005]
[1736976602864,0.0009547,99801.0,99800.0,0.48085005]
[1736976606698,0.0009547,99801.0,99800.0,0.75082715]
[1736976609094,0.0009547,99801.0,99800.0,0.48085005]
[1736976609934,7e-07,99801.0,99800.0,0.76687697]
[1736976610144,0.00304357,99813.0,99812.0,0.6822848]
[1736976610371,0.0033551,99814.0,99813.0,0.3754088]
[1736976610587,0.0033551,99814.0,99813.0,0.47963572]
[1736976611873,0.0033551,99814.0,99813.0,0.48563572]
[1736976612297,0.0033551,99814.0,99813.0,0.1754088]
[1736976612512,0.0033551,99814.0,99813.0,0.03530504]
[1736976612740,0.0033551,99814.0,99813.0,0.13630668]
[1736976613392,0.0033551,99814.0,99813.0,0.03630668]
[1736976613602,0.0033551,99814.0,99813.0,0.03830668]
[1736976613809,0.0033551,99814.0,99813.0,0.13830668]
[1736976614000,0.0033551,99814.0,99813.0,0.13630668]
[1736976614125,0.0033551,99814.0,99813.0,0.13930668]
[1736976614310,0.0033551,99814.0,99813.0,0.14030668]
[1736976614512,0.0033551,99814.0,99813.0,0.04030668]
[1736976614876,0.0033551,99814.0,99813.0,0.04030678]
[1736976615078,0.0033551,99814.0,99813.0,0.03930504]
[1736976615721,0.0033551,99814.0,99813.0,0.03689624]
[1736976615889,0.0033551,99814.0,99813.0,0.03630504]
[1736976616288,0.0033551,99814.0,99813.0,0.03730504]
[1736976616638,0.0033551,99814.0,99813.0,0.32239847]
[1736976617037,0.0033551,99814.0,99813.0,0.32139847]
[1736976617225,0.0033551,99814.0,99813.0,0.32039847]
[1736976617646,0.0033551,99814.0,99813.0,0.18530504]
[1736976619501,0.0033551,99814.0,99813.0,0.18630681]
[1736976619926,0.0033551,99814.0,99813.0,0.41146252]
[1736976620129,0.0033551,99814.0,99813.0,0.41046075]
[1736976620519,0.0033551,99814.0,99813.0,0.41146075]
[1736976620697,0.0033551,99814.0,99813.0,0.41046075]
[1736976621059,0.0033551,99814.0,99813.0,0.18530504]
[1736976621260,0.0033551,99814.0,99813.0,0.18630668]
[1736976622031,0.0033551,99814.0,99813.0,0.18810218]
[1736976623028,0.0032551,99814.0,99813.0,0.18810218]
[1736976625561,0.0032551,99814.0,99813.0,0.18710054]
[1736976627442,0.0032551,99814.0,99813.0,0.27702365]
[1736976628208,0.0032551,99814.0,99813.0,0.18710054]
[1736976629977,0.0032551,99814.0,99813.0,0.32200308]
[1736976633858,0.0032551,99814.0,99813.0,0.18710054]
[1736976635142,0.0032551,99814.0,99813.0,0.32195881]
[1736976638888,0.0032551,99814.0,99813.0,0.17195881]
[1736976639439,0.0032551,99814.0,99813.0,0.32195881]
[1736976642345,0.0032551,99814.0,99813.0,0.17195881]
[1736976642644,0.0032551,99814.0,99813.0,0.32195881]
[1736976646290,0.0032551,99814.0,99813.0,0.14895881]
[1736976646490,0.0032551,99814.0,99813.0,0.01410054]
[1736976647012,0.0032551,99814.0,99813.0,0.14892345]
[1736976648794,0.0032551,99814.0,99813.0,0.01410054]
[1736976651966,0.00951738,99814.0,99813.0,0.01410054]
[1736976653704,0.00951738,99814.0,99813.0,0.14892345]
[1736976658643,0.00951738,99814.0,99813.0,0.01410054]
[1736976662995,0.00951738,99814.0,99813.0,0.19386442]
[1736976666902,0.00951738,99814.0,99813.0,0.01410054]
[1736976669775,0.00951738,99814.0,99813.0,0.23880539]
[1736976670055,0.00951738,99814.0,99813.0,0.23850639]
[1736976671158,0.00951738,99814.0,99813.0,0.28550639]
[1736976672110,0.00951738,99814.0,99813.0,0.08380154]
[1736976672312,0.00951738,99814.0,99813.0,0.31040335]
[1736976672522,0.00951738,99814.0,99813.0,0.51362846]
[1736976672722,0.00951738,99814.0,99813.0,0.30940154]
[1736976673379,0.0032551,99814.0,99813.0,0.30940154]
[1736976673776,0.0032551,99814.0,99813.0,0.31240154]
[1736976674181,0.0032551,99814.0,99813.0,0.31340154]
[1736976674599,0.0032551,99814.0,99813.0,0.31240154]
[1736976675050,0.0032551,99814.0,99813.0,0.31340154]
[1736976675607,0.0032551,99814.0,99813.0,0.04080154]
[1736976676677,0.0032551,99814.0,99813.0,0.03780154]
[1736976676846,0.0032551,99814.0,99813.0,0.03680154]
[1736976677056,0.0032551,99814.0,99813.0,0.03880154]
[1736976677224,0.0032551,99814.0,99813.0,0.03680154]
[1736976677423,0.0032551,99814.0,99813.0,0.03780154]
[1736976679240,0.0032551,99814.0,99813.0,0.11340154]
[1736976681108,0.0032551,99814.0,99813.0,0.11440332]
[1736976681918,0.0032551,99814.0,99813.0,0.03880332]
[1736976682120,0.0032551,99814.0,99813.0,0.01480154]
[1736976682283,0.0813551,99814.0,99813.0,0.0027955]
[1736976682656,0.38595402,99814.0,99813.0,0.0027955]
[1736976682854,0.70635402,99814.0,99813.0,0.0027955]
[1736976683070,0.75375402,99814.0,99813.0,0.0027955]
[1736976683264,0.75375402,99814.0,99813.0,0.0017955]
[1736976684099,0.75475402,99814.0,99813.0,0.0017955]
[1736976684647,0.75475402,99814.0,99813.0,0.0027955]
[1736976684845,0.75375402,99814.0,99813.0,0.0027955]
[1736976685074,0.76362157,99814.0,99813.0,0.0027955]
[1736976685289,0.8986935,99814.0,99813.0,0.0027955]
[1736976685974,0.8986935,99814.0,99813.0,0.0017955]
[1736976686312,0.76362157,99814.0,99813.0,0.0017955]
[1736976686520,0.76662157,99814.0,99813.0,0.0017955]
[1736976687057,0.76362157,99814.0,99813.0,0.0017955]
[1736976687326,0.76362157,99814.0,99813.0,0.0057955]
[1736976687524,0.8986935,99814.0,99813.0,0.0057955]
[1736976689647,0.76362157,99814.0,99813.0,0.0057955]
[1736976690637,0.75375402,99814.0,99813.0,0.0057955]
[1736976696037,0.75370402,99814.0,99813.0,0.0057955]
[1736976697446,0.76928305,99814.0,99813.0,0.0057955]
[1736976699314,0.75370402,99814.0,99813.0,0.0057955]
[1736976700327,0.42783202,99814.0,99813.0,0.0057955]
[1736976700525,0.3236051,99814.0,99813.0,0.0082043]
[1736976702051,0.3236051,99814.0,99813.0,0.0052043]
[1736976702407,0.3236051,99814.0,99813.0,0.0042043]
[1736976702607,0.3326051,99814.0,99813.0,0.0042043]
[1736976702817,0.3266051,99814.0,99813.0,0.0042043]
[1736976703016,0.3296051,99814.0,99813.0,0.0042043]
[1736976703166,0.3296051,99814.0,99813.0,0.01427511]
[1736976703521,0.3296051,99814.0,99813.0,0.0042043]
[1736976703962,0.3326051,99814.0,99813.0,0.0042043]
[1736976705912,0.43683202,99814.0,99813.0,0.0017955]
[1736976709870,0.45243316,99814.0,99813.0,0.0017955]
[1736976711749,0.43683202,99814.0,99813.0,0.0017955]
[1736976715237,0.4430958,99814.0,99813.0,0.0017955]
[1736976728140,0.53288577,99814.0,99813.0,0.0017955]
[1736976729214,0.4430958,99814.0,99813.0,0.0017955]
[1736976737292,0.33886888,99814.0,99813.0,0.0042043]
[1736976737494,0.33886888,99814.0,99813.0,0.2045783]
[1736976738127,0.33886888,99814.0,99813.0,0.2822783]
[1736976738301,0.33286888,99814.0,99813.0,0.3283783]
[1736976738534,0.01246888,99814.0,99813.0,0.4783783]
[1736976738736,0.01746888,99814.0,99813.0,0.5013783]
[1736976738909,0.01246888,99814.0,99813.0,0.5013783]
[1736976739323,0.01446888,99814.0,99813.0,0.5013783]
[1736976739519,0.00946888,99814.0,99813.0,0.51137957]
[1736976739931,0.01146888,99814.0,99813.0,0.51237957]
[1736976740352,0.00946888,99814.0,99813.0,0.51237957]
[1736976740650,0.0032051,99814.0,99813.0,0.51237957]
[1736976741004,0.0032051,99814.0,99813.0,0.51137957]
[1736976741447,0.0032051,99814.0,99813.0,0.51237957]
[1736976758909,0.0032051,99814.0,99813.0,0.16520557]
[1736976759123,0.0032051,99814.0,99813.0,0.0052043]
[1736976760371,0.0042051,99814.0,99813.0,0.0052043]
[1736976760573,0.0042051,99814.0,99813.0,0.0042043]
[1736976760758,0.0032051,99814.0,99813.0,0.0042043]
[1736976760959,0.0062051,99814.0,99813.0,0.0042043]
[1736976761539,0.0122051,99814.0,99813.0,0.0042043]
[1736976762911,0.0122051,99814.0,99813.0,0.0017955]
[1736976763179,0.0129189,99814.0,99813.0,0.0017955]
[1736976763393,0.0129189,99814.0,99813.0,0.0042043]
[1736976763567,0.0122051,99814.0,99813.0,0.0042043]
[1736976765004,0.01846705,99814.0,99813.0,0.0042043]
[1736976765570,0.01846705,99814.0,99813.0,0.0017955]
[1736976766075,0.01846705,99814.0,99813.0,0.0042043]
[1736976768225,0.01846705,99814.0,99813.0,0.0017955]
[1736976768431,0.01846705,99814.0,99813.0,0.0042043]
[1736976770565,0.01846705,99814.0,99813.0,0.0017955]
[1736976770894,0.01846705,99814.0,99813.0,0.0042043]
[1736976779732,0.01846705,99814.0,99813.0,0.0017955]
[1736976781057,0.01846705,99814.0,99813.0,0.0042043]
[1736976786280,0.01846705,99814.0,99813.0,0.0017955]
[1736976787370,0.12269397,99814.0,99813.0,0.0017955]
[1736976787529,0.12340777,99814.0,99813.0,0.0017955]
[1736976787913,0.13905055,99814.0,99813.0,0.0017955]
[1736976789419,0.33942255,99814.0,99813.0,0.0017955]
[1736976789613,0.32306597,99814.0,99813.0,0.0017955]
[1736976789790,0.12269397,99814.0,99813.0,0.0017955]
[1736976789993,0.32377977,99814.0,99813.0,0.0017955]
[1736976790197,0.32306597,99814.0,99813.0,0.0017955]
[1736976790574,0.64346597,99814.0,99813.0,0.0017955]
[1736976791966,0.44309397,99814.0,99813.0,0.0017955]
[1736976793077,0.64346597,99814.0,99813.0,0.0017955]
[1736976793432,0.72646597,99814.0,99813.0,0.0017955]
[1736976793638,0.77626597,99814.0,99813.0,0.0017955]
[1736976794031,0.80756292,99814.0,99813.0,0.0017955]
[1736976794391,0.89615412,99814.0,99813.0,0.0017955]
[1736976794520,0.89615412,99814.0,99813.0,0.0027955]
[1736976794521,0.89889217,99814.0,99813.0,0.0027955]
[1736976794735,1.03378947,99814.0,99813.0,0.0027955]
[1736976795563,1.03078947,99814.0,99813.0,0.0027955]
[1736976795759,1.22793668,99814.0,99813.0,0.0027955]
[1736976795974,0.96624853,99814.0,99813.0,0.0027955]
[1736976796741,0.63420402,99814.0,99813.0,0.0027955]
[1736976796940,0.62820402,99814.0,99813.0,0.0017955]
[1736976797150,0.62920402,99814.0,99813.0,0.0087955]
[1736976797542,0.62820402,99814.0,99813.0,0.0017955]
[1736976797700,0.62820402,99814.0,99813.0,0.0027955]
[1736976798204,0.62820402,99814.0,99813.0,0.0097955]
[1736976798429,0.62920402,99814.0,99813.0,0.0097955]
[1736976798639,0.62920402,99814.0,99813.0,0.0127955]
[1736976799042,0.63546768,99814.0,99813.0,0.0127955]
[1736976803526,0.62920402,99814.0,99813.0,0.0127955]
[1736976806343,0.6354677,99814.0,99813.0,0.0127955]
[1736976809395,0.62920402,99814.0,99813.0,0.0127955]
[1736976819206,0.63546756,99814.0,99813.0,0.0127955]
[1736976832463,0.43509556,99814.0,99813.0,0.0127955]
[1736976832699,0.01046864,99814.0,99813.0,0.0945043]
[1736976833347,0.01046864,99814.0,99813.0,0.2941043]
[1736976833597,0.01046864,99814.0,99813.0,0.3091043]
[1736976833800,0.00946864,99814.0,99813.0,0.3061043]
[1736976834000,0.01546864,99814.0,99813.0,0.3061043]
[1736976834208,0.01146864,99814.0,99813.0,0.3061043]
[1736976834386,0.0052051,99814.0,99813.0,0.3061043]
[1736976834598,0.0072051,99814.0,99813.0,0.3061043]
[1736976835406,0.0072051,99814.0,99813.0,0.31637182]
[1736976836030,0.0052051,99814.0,99813.0,0.31637182]
[1736976836462,0.0072051,99814.0,99813.0,0.31637182]
[1736976852550,0.0072051,99814.0,99813.0,0.29337182]
[1736976852771,0.0072051,99814.0,99813.0,0.0042043]
[1736976857087,0.0072051,99814.0,99813.0,0.0017955]
[1736976859389,0.0072051,99814.0,99813.0,0.0042043]
[1736976860802,0.01346721,99814.0,99813.0,0.0042043]
[1736976865963,0.11769413,99814.0,99813.0,0.0017955]
[1736976866177,0.11840793,99814.0,99813.0,0.0017955]
[1736976866790,0.11640793,99814.0,99813.0,0.0017955]
[1736976867152,0.43054582,99814.0,99813.0,0.0017955]
[1736976867352,0.43283202,99814.0,99813.0,0.0017955]
[1736976867571,0.42983202,99814.0,99813.0,0.0017955]
[1736976867774,0.43383202,99814.0,99813.0,0.0027955]
[1736976867966,0.43183202,99814.0,99813.0,0.0027955]
[1736976868120,0.43283202,99814.0,99813.0,0.0027955]
[1736976868707,0.43183202,99814.0,99813.0,0.0027955]
[1736976869428,0.43483202,99814.0,99813.0,0.0027955]
[1736976873958,0.51473202,99814.0,99813.0,0.0027955]
[1736976874722,0.51173202,99814.0,99813.0,0.0027955]
[1736976874907,0.55683202,99814.0,99813.0,0.0037955]
[1736976875314,0.55283202,99814.0,99813.0,0.0027955]
[1736976875517,0.55283202,99814.0,99813.0,0.0057955]
[1736976875728,0.55283202,99814.0,99813.0,0.0027955]
[1736976875927,1.06457214,99814.0,99813.0,0.0027955]
[1736976876309,1.06457214,99814.0,99813.0,0.0057955]
[1736976876515,1.06457214,99814.0,99813.0,0.0027955]
[1736976876746,0.88479903,99814.0,99813.0,0.0027955]
[1736976877135,0.88479903,99814.0,99813.0,0.0017955]
[1736976877683,0.68767077,99814.0,99813.0,0.0017955]
[1736976879922,0.55283202,99814.0,99813.0,0.0017955]
[1736976881601,0.64266565,99814.0,99813.0,0.0017955]
[1736976882897,0.55283202,99814.0,99813.0,0.0017955]
[1736976883062,0.59570424,99814.0,99813.0,0.0017955]
[1736976893506,0.47662424,99814.0,99813.0,0.0017955]
[1736976895383,0.47070424,99814.0,99813.0,0.0017955]
[1736976895739,0.56053787,99814.0,99813.0,0.0017955]
[1736976896628,0.47070424,99814.0,99813.0,0.0017955]
[1736976905238,0.56053787,99814.0,99813.0,0.0017955]
[1736976906249,0.47070424,99814.0,99813.0,0.0017955]
[1736976907847,0.47070424,99814.0,99813.0,0.0037955]
[1736976908472,0.47070424,99814.0,99813.0,0.0047955]
[1736976909638,0.56066972,99814.0,99813.0,0.0047955]
[1736976910509,0.47070424,99814.0,99813.0,0.0047955]
[1736976911088,0.50199623,99814.0,99813.0,0.0047955]
[1736976911296,0.83433019,99814.0,99813.0,0.0047955]
[1736976912125,1.0141033,99814.0,99813.0,0.0047955]
[1736976913816,0.83433019,99814.0,99813.0,0.0047955]
[1736976914748,0.8030382,99814.0,99813.0,0.0047955]
[1736976914968,0.83433189,99814.0,99813.0,0.0047955]
[1736976916047,1.05904827,99814.0,99813.0,0.0047955]
[1736976917088,0.93192309,99814.0,99813.0,0.0047955]
[1736976920397,1.20158275,99814.0,99813.0,0.0047955]
[1736976922351,1.2078475,99814.0,99813.0,0.0047955]
[1736976922802,0.93818784,99814.0,99813.0,0.0047955]
[1736976923008,0.84059664,99814.0,99813.0,0.0047955]
[1736976923221,0.84059664,99814.0,99813.0,0.00100864]
[1736976924025,0.84651664,99814.0,99813.0,0.00100864]
[1736976926531,0.81522295,99814.0,99813.0,0.00100864]
[1736976929903,0.84651843,99814.0,99813.0,0.00100864]
[1736976930103,0.84651843,99814.0,99813.0,0.00280414]
[1736976931126,0.84651843,99814.0,99813.0,0.00280414]
[1736976932585,0.84651843,99814.0,99813.0,0.00058645]
[1736976933855,0.84059843,99814.0,99813.0,0.00058645]
[1736976940503,0.80930295,99814.0,99813.0,0.00058645]
[1736976940704,0.84059856,99814.0,99813.0,0.00058645]
[1736976943268,0.84059856,99814.0,99813.0,0.00012399]
[1736976944979,0.79772634,99814.0,99813.0,0.00012399]
[1736976948840,0.89531754,99814.0,99813.0,0.00012399]
[1736976949068,0.97451754,99814.0,99813.0,0.00012399]
[1736976949902,0.97451754,99814.0,99813.0,2.609e-05]
[1736976950113,1.44034569,99814.0,99813.0,2.609e-05]
[1736976956654,0.200398,99801.0,99800.0,0.00179445]
[1736976956788,0.34821498,99801.0,99800.0,0.00184464]
[1736976956994,0.34750118,99801.0,99800.0,0.00184464]
[1736976957397,0.35376593,99801.0,99800.0,0.00184464]
[1736976957795,0.86632238,99801.0,99800.0,0.00184464]
[1736976958277,0.86732238,99801.0,99800.0,0.01184464]
[1736976959731,1.18772238,99801.0,99800.0,0.01184464]
[1736976959934,1.00749989,99801.0,99800.0,0.01184464]
[1736976960899,0.80710189,99801.0,99800.0,0.09504464]
[1736976961106,0.80710189,99801.0,99800.0,0.1511491]
[1736976961734,0.80710189,99801.0,99800.0,0.14164464]
[1736976962160,0.56486934,99801.0,99800.0,0.14164464]
[1736976962879,0.56486934,99801.0,99800.0,0.01184464]
[1736976963083,0.66246054,99801.0,99800.0,0.01184464]
[1736976963302,0.69374674,99801.0,99800.0,0.01184464]
[1736976963828,0.93628663,99801.0,99800.0,0.01184464]
[1736976963997,0.94542429,99801.0,99800.0,0.00184464]
[1736976964498,0.94642429,99801.0,99800.0,0.00984464]
[1736976964703,0.94542429,99801.0,99800.0,0.00384464]
[1736976964999,0.94542429,99801.0,99800.0,0.00184464]
[1736976965233,0.94542429,99801.0,99800.0,0.00384464]
[1736976965417,0.93915954,99801.0,99800.0,0.00384464]
[1736976965639,1.20943303,99801.0,99800.0,0.00184464]
[1736976965846,1.20943303,99801.0,99800.0,0.00284464]
[1736976966455,0.94015954,99801.0,99800.0,0.00884464]
[1736976966600,0.93915954,99801.0,99800.0,0.00284464]
[1736976967028,1.03915954,99801.0,99800.0,0.00384464]
[1736976967444,1.30943303,99801.0,99800.0,0.00484464]
[1736976967784,1.30943303,99801.0,99800.0,0.00284464]
[1736976967964,1.30943303,99801.0,99800.0,0.00184464]
[1736976969286,1.30943303,99801.0,99800.0,0.00384464]
[1736976969475,1.30943303,99801.0,99800.0,0.00184464]
[1736976969690,1.03915954,99801.0,99800.0,0.00184464]
[1736976973471,1.31750171,99801.0,99800.0,6.4e-07]
[1736976973679,1.33725954,99801.0,99800.0,6.4e-07]
[1736976973884,1.36940658,99801.0,99800.0,6.4e-07]
[1736976974745,1.8355862,99801.0,99800.0,6.4e-07]
[1736976975121,0.5480212,99785.0,99784.0,0.00179487]
[1736976975337,0.68945432,99785.0,99784.0,0.00179487]
[1736976976523,1.02409562,99785.0,99784.0,0.00179487]
[1736976977604,1.02509562,99785.0,99784.0,0.00179487]
[1736976977805,1.34549562,99785.0,99784.0,0.00179487]
[1736976978390,1.31420942,99785.0,99784.0,0.00179487]
[1736976980771,1.5489437,99785.0,99784.0,0.00179487]
[1736976981720,1.32423369,99785.0,99784.0,0.00179487]
[1736976988847,1.22664249,99785.0,99784.0,0.00179487]
[1736976989082,1.22664249,99785.0,99784.0,0.01026384]
[1736976989281,1.22664249,99785.0,99784.0,0.00179487]
[1736976989282,1.32423369,99785.0,99784.0,0.00179487]
[1736976990004,1.08143192,99785.0,99784.0,0.00179487]
[1736976991265,0.99159239,99785.0,99784.0,0.00179487]
[1736976992255,1.12635169,99785.0,99784.0,0.00179487]
[1736976992465,1.15757433,99785.0,99784.0,0.00179487]
[1736976993322,1.35454596,99785.0,99784.0,0.00179487]
[1736976995252,1.57925597,99785.0,99784.0,0.00179487]
[1736976995625,0.6679912,99784.0,99771.0,0.0811]
[1736976995890,0.80344076,99784.0,99771.0,0.0811]
[1736976996603,0.80344076,99784.0,99767.0,0.0475]
[1736976996841,0.80344076,99784.0,99783.0,8.7e-07]
[1736976996842,0.9362878,99784.0,99783.0,8.7e-07]
[1736976997055,0.9867878,99784.0,99783.0,8.7e-07]
[1736976997267,1.31851873,99784.0,99783.0,8.7e-07]
[1736976997804,1.31751873,99784.0,99783.0,8.7e-07]
[1736976998284,1.34636038,99784.0,99783.0,8.7e-07]
[1736976998466,1.34636038,99784.0,99755.0,0.079]
[1736976998467,0.72137,99758.0,99755.0,0.079]
[1736976998670,0.10422692,99756.0,99755.0,0.079]
[1736976999833,0.10422692,99756.0,99755.0,0.00315079]
[1736977000039,0.30542972,99756.0,99755.0,0.00315079]
[1736977000279,0.30471592,99756.0,99755.0,0.00315079]
[1736977000622,0.30471592,99756.0,99755.0,0.00415079]
[1736977000823,0.32042151,99756.0,99755.0,0.00415079]
[1736977001030,0.32042151,99756.0,99755.0,0.00500599]
[1736977001338,0.32042151,99756.0,99755.0,0.00400599]
[1736977001895,0.64082151,99756.0,99755.0,0.00100599]
[1736977002354,0.64082151,99756.0,99755.0,0.00200599]
[1736977002558,0.64082151,99756.0,99755.0,0.00100599]
[1736977002766,0.64082151,99756.0,99740.0,0.00179592]
[1736977002767,0.5480902,99751.0,99743.0,0.0794]
[1736977002971,0.200513,99744.0,99743.0,0.0794]
[1736977003177,0.30473992,99744.0,99743.0,0.07990187]
[1736977005601,0.30573992,99744.0,99743.0,0.08490187]
[1736977006413,0.30473992,99744.0,99743.0,0.07990187]
[1736977006823,0.30473992,99744.0,99743.0,0.08090187]
[1736977007750,0.62513992,99744.0,99743.0,0.08090187]
[1736977009030,0.63516636,99744.0,99743.0,0.08090187]
[1736977010251,0.63516636,99744.0,99743.0,0.08080187]
[1736977012833,0.63516636,99744.0,99743.0,0.08165747]
[1736977014092,0.88939328,99744.0,99743.0,0.00235747]
[1736977014308,0.98275756,99744.0,99743.0,0.00235747]
[1736977014511,1.00575756,99744.0,99743.0,0.00235747]
[1736977014765,0.98275756,99744.0,99743.0,0.00235747]
[1736977014992,0.98275756,99744.0,99743.0,0.00135747]
[1736977015375,0.98275756,99744.0,99743.0,0.00235747]
[1736977015586,0.98275756,99744.0,99743.0,0.00135747]
[1736977015997,1.31727149,99744.0,99743.0,0.00135747]
[1736977016149,0.90128029,99744.0,99743.0,0.00135747]
[1736977016488,0.99887149,99744.0,99743.0,0.00135747]
[1736977016633,0.90128029,99744.0,99743.0,0.00135747]
[1736977016843,0.90720029,99744.0,99743.0,0.00135747]
[1736977017043,1.00479149,99744.0,99743.0,0.00135747]
[1736977017890,0.32568636,99744.0,99743.0,0.00135747]
[1736977018088,0.42568636,99744.0,99743.0,0.00135747]
[1736977018267,0.32568636,99744.0,99743.0,0.00135747]
[1736977018936,0.42568636,99744.0,99743.0,0.00135747]
[1736977019561,0.32568636,99744.0,99743.0,0.00135747]
[1736977019768,0.42568636,99744.0,99743.0,0.00135747]
[1736977019919,0.32568636,99744.0,99743.0,0.00135747]
[1736977020129,0.42568636,99744.0,99743.0,0.00135747]
[1736977020962,0.32568636,99744.0,99743.0,0.00135747]
[1736977022538,0.42568636,99744.0,99743.0,0.00135747]
[1736977030287,0.45695547,99744.0,99743.0,0.00135747]
[1736977031694,0.45685547,99744.0,99743.0,0.00135747]
[1736977033307,0.54664192,99744.0,99743.0,0.00135747]
[1736977035266,0.45685547,99744.0,99743.0,0.00135747]
[1736977036555,0.45865245,99744.0,99743.0,0.00135747]
[1736977037532,0.59349502,99744.0,99743.0,0.00135747]
[1736977037938,0.84108622,99744.0,99743.0,0.00135747]
[1736977038341,1.21806662,99744.0,99743.0,0.00135747]
[1736977039786,1.03827652,99744.0,99743.0,0.00135747]
[1736977044021,1.03235652,99744.0,99743.0,0.00135747]
[1736977044313,1.50377756,99744.0,99743.0,0.00135747]
[1736977045149,1.04454582,99744.0,99743.0,0.00135747]
[1736977046004,0.200519,99741.0,99740.0,0.00069664]
[1736977046222,0.200519,99741.0,99740.0,0.00074693]
[1736977046223,0.33672883,99741.0,99740.0,0.00074693]
[1736977046409,0.33601503,99741.0,99740.0,0.00074693]
[1736977047378,0.71822421,99741.0,99740.0,0.00074693]
[1736977048009,0.71822421,99741.0,99740.0,6.089e-05]
[1736977048587,0.72022421,99741.0,99740.0,6.089e-05]
[1736977048746,0.72022421,99741.0,99740.0,0.07736089]
[1736977048964,0.72022421,99741.0,99740.0,0.08509698]
[1736977049174,0.4884361,99741.0,99740.0,0.13720578]
[1736977049565,0.38420918,99741.0,99740.0,0.13720578]
[1736977049767,0.38220918,99741.0,99740.0,0.13720578]
[1736977050170,0.38220918,99741.0,99740.0,0.14120578]
[1736977050674,0.04917631,99741.0,99740.0,0.14120578]
[1736977050873,0.04917631,99741.0,99740.0,0.14220578]
[1736977051333,0.04917631,99741.0,99740.0,0.13720578]
[1736977051702,0.05017631,99741.0,99740.0,0.14420578]
[1736977051906,0.05217631,99741.0,99740.0,0.13720578]
[1736977052316,0.05917631,99741.0,99740.0,0.13820578]
[1736977052941,0.0162693,99741.0,99740.0,0.13820578]
[1736977053731,0.01,99741.0,99740.0,0.13820578]
[1736977058526,0.01,99741.0,99740.0,0.33872678]
[1736977060867,0.01179571,99741.0,99740.0,0.33872678]
[1736977070851,0.01179571,99741.0,99740.0,0.13820578]
[1736977071057,0.01179571,99741.0,99740.0,0.13920823]
[1736977073077,0.01179571,99741.0,99740.0,0.33972923]
[1736977073275,0.01179571,99741.0,99740.0,0.33872678]
[1736977074492,0.01179571,99741.0,99740.0,0.33099069]
[1736977075687,0.01179571,99741.0,99740.0,0.13046969]
[1736977076108,0.11602263,99741.0,99740.0,0.00106089]
[1736977077150,0.20443917,99741.0,99740.0,0.00106089]
[1736977077790,0.20170486,99741.0,99740.0,0.00106089]
[1736977077990,0.19470486,99741.0,99740.0,6.089e-05]
[1736977078170,0.19870486,99741.0,99740.0,6.089e-05]
[1736977078371,0.12529106,99741.0,99740.0,0.00106089]
[1736977078530,0.11629106,99741.0,99740.0,6.089e-05]
[1736977079157,0.11629106,99741.0,99740.0,0.00406089]
[1736977079388,0.11229106,99741.0,99740.0,0.00406089]
[1736977079627,0.43269106,99741.0,99740.0,0.00406089]
[1736977079825,0.43269106,99741.0,99740.0,0.00606089]
[1736977084424,0.43269106,99741.0,99740.0,0.01427698]
[1736977085184,0.43269106,99741.0,99740.0,0.00606089]
[1736977085584,0.42642263,99741.0,99740.0,0.00606089]
[1736977085785,0.43269085,99741.0,99740.0,0.00606089]
[1736977090854,0.43269085,99741.0,99740.0,0.00846969]
[1736977092137,0.44832348,99741.0,99740.0,0.00846969]